[Event "US Masters"]
[Site "Charlotte USA"]
[Date "2023.11.23"]
[Round "2.15"]
[White "Thavandiran, Shiyam"]
[Black "Margvelashvili, Giorgi"]
[Result "0-1"]
[ECO "A40"]
[WhiteElo "2348"]
[BlackElo "2540"]
[PlyCount "90"]
[EventDate "2023.11.24"]
[EventType "swiss"]
[EventRounds "9"]
[EventCountry "USA"]
[Source "ChessMix"]
[SourceDate "2023.12.01"]
[TimeControl "5400+30"]

1. e4 {[%emt 0:00:12]} c5 {[%emt 0:06:24]} 2. Nf3 {[%emt 0:00:53]} Nc6 {
[%emt 0:00:31]} 3. d4 {[%emt 0:02:48]} cxd4 {[%emt 0:01:06]} 4. Nxd4 {
[%emt 0:00:03]} Qb6 {[%emt 0:00:42]} 5. Nb3 {[%emt 0:00:47]} g6 {[%emt 0:00:50]
} 6. c4 {[%emt 0:12:01]} Bg7 {[%emt 0:01:51]} 7. Be3 {[%emt 0:00:21]} Qd8 {
[%emt 0:07:52]} 8. Qd2 {[%emt 0:14:26]} Nf6 {[%emt 0:04:13]} 9. f3 {
[%emt 0:07:44]} O-O {[%emt 0:04:06]} 10. Nc3 {[%emt 0:01:07]} d6 {
[%emt 0:00:06]} 11. Be2 {[%emt 0:00:43]} a5 {[%emt 0:00:05]} 12. Na4 {
[%emt 0:12:49]} Nd7 {[%emt 0:02:18]} 13. O-O {[%emt 0:01:53]} b6 {
[%emt 0:00:49]} 14. Rfd1 {[%emt 0:03:08]} Nc5 {[%emt 0:01:37]} 15. Nc3 {
[%emt 0:00:27]} Nxb3 {[%emt 0:07:38]} 16. axb3 {[%emt 0:02:10]} Be6 {
[%emt 0:03:37]} 17. Nd5 {[%emt 0:02:15]} Bxd5 {[%emt 0:03:00]} 18. cxd5 {
[%emt 0:07:54]} Nb4 {[%emt 0:00:15]} 19. Rac1 {[%emt 0:03:00]} Rb8 {
[%emt 0:11:22]} 20. Bb5 {[%emt 0:11:03]} f5 {[%emt 0:00:20]} 21. h4 {
[%emt 0:10:27]} fxe4 {[%emt 0:02:26]} 22. fxe4 {[%emt 0:00:05]} Be5 {
[%emt 0:03:18]} 23. Rf1 {[%emt 0:03:58]} Rf6 {[%emt 0:13:16]} 24. Bd4 {
[%emt 0:01:34]} Rxf1+ {[%emt 0:03:19]} 25. Rxf1 {[%emt 0:00:22]} Bxd4+ {
[%emt 0:00:13]} 26. Qxd4 {[%emt 0:00:02]} Qc7 {[%emt 0:00:09]} 27. Bc6 {
[%emt 0:01:16]} e5 {[%emt 0:03:05]} 28. Qf2 {[%emt 0:00:27]} Qe7 {
[%emt 0:00:46]} 29. h5 {[%emt 0:00:33]} gxh5 {[%emt 0:04:08]} 30. Qg3+ {
[%emt 0:00:30]} Kh8 {[%emt 0:01:52]} 31. Qf2 {[%emt 0:00:30]} Nd3 {
[%emt 0:01:13]} 32. Qe3 {[%emt 0:00:28]} Nc5 {[%emt 0:03:44]} 33. Rf5 {
[%emt 0:00:20]} h4 {[%emt 0:00:40]} 34. Qf3 {[%emt 0:00:42]} Rg8 {
[%emt 0:00:28]} 35. Rf6 {[%emt 0:00:30]} h3 {[%emt 0:01:23]} 36. Rf7 {
[%emt 0:00:22]} Qh4 {[%emt 0:00:31]} 37. Rf8 {[%emt 0:00:30]} hxg2 {
[%emt 0:02:22]} 38. Rxg8+ {[%emt 0:00:32]} Kxg8 {[%emt 0:00:01]} 39. Qxg2+ {
[%emt 0:00:35]} Kf7 {[%emt 0:01:14]} 40. Qf3+ {[%emt 0:00:29]} Kg7 {
[%emt 0:00:45]} 41. Be8 {[%emt 0:00:31]} Qg5+ {[%emt 0:01:24]} 42. Kh1 {
[%emt 0:00:12]} Qc1+ {[%emt 0:00:46]} 43. Kg2 {[%emt 0:00:03]} Qxb2+ {
[%emt 0:00:10]} 44. Kh1 {[%emt 0:00:27]} Qc1+ {[%emt 0:00:09]} 45. Kg2 {
[%emt 0:00:02]} Qf4 {[%emt 0:00:35]} 0-1

[Event "US Masters"]
[Site "Charlotte USA"]
[Date "2023.11.26"]
[Round "8.22"]
[White "Thavandiran, Shiyam"]
[Black "Cruz, Cristhian"]
[Result "0-1"]
[ECO "B81"]
[WhiteElo "2348"]
[BlackElo "2498"]
[PlyCount "72"]
[EventDate "2023.11.24"]
[EventType "swiss"]
[EventRounds "9"]
[EventCountry "USA"]
[Source "ChessMix"]
[SourceDate "2023.12.01"]
[TimeControl "5400+30"]

1. e4 {[%emt 0:02:14]} c5 {[%emt 0:06:33]} 2. Nf3 {[%emt 0:00:26]} e6 {
[%emt 0:01:10]} 3. d4 {[%emt 0:00:15]} cxd4 {[%emt 0:00:06]} 4. Nxd4 {
[%emt 0:00:08]} Nf6 {[%emt 0:00:30]} 5. Nc3 {[%emt 0:00:33]} d6 {[%emt 0:00:05]
} 6. g4 {[%emt 0:00:35]} h6 {[%emt 0:00:13]} 7. h4 {[%emt 0:08:51]} Nc6 {
[%emt 0:00:30]} 8. Rg1 {[%emt 0:00:14]} h5 {[%emt 0:02:43]} 9. gxh5 {
[%emt 0:00:31]} Nxh5 {[%emt 0:00:57]} 10. Bg5 {[%emt 0:00:39]} Qb6 {
[%emt 0:00:59]} 11. Nb3 {[%emt 0:00:55]} a6 {[%emt 0:02:43]} 12. Qd2 {
[%emt 0:07:11]} Bd7 {[%emt 0:07:46]} 13. O-O-O {[%emt 0:00:44]} Rc8 {
[%emt 0:00:45]} 14. Kb1 {[%emt 0:12:07]} Ne5 {[%emt 0:06:21]} 15. Nd4 {
[%emt 0:10:44]} Nf6 {[%emt 0:20:34]} 16. f4 {[%emt 0:07:44]} Nc6 {
[%emt 0:03:30]} 17. Nf3 {[%emt 0:01:51]} Nh7 {[%emt 0:03:32]} 18. f5 {
[%emt 0:04:10]} Nxg5 {[%emt 0:14:08]} 19. Rxg5 {[%emt 0:00:42]} Be7 {
[%emt 0:04:52]} 20. Rxg7 {[%emt 0:26:11]} Bf6 {[%emt 0:00:32]} 21. Rg3 {
[%emt 0:00:12]} Ne5 {[%emt 0:03:25]} 22. fxe6 {[%emt 0:03:05]} fxe6 {
[%emt 0:03:33]} 23. Nd4 {[%emt 0:04:45]} Nc4 {[%emt 0:04:30]} 24. Bxc4 {
[%emt 0:00:25]} Rxc4 {[%emt 0:00:02]} 25. Nb3 {[%emt 0:01:31]} a5 {
[%emt 0:08:06]} 26. Rdg1 {[%emt 0:04:51]} Kd8 {[%emt 0:03:40]} 27. Nxa5 {
[%emt 0:01:52]} Rxc3 {[%emt 0:00:25]} 28. Rg8+ {[%emt 0:00:31]} Kc7 {
[%emt 0:00:32]} 29. e5 {[%emt 0:00:29]} Bxe5 {[%emt 0:00:37]} 30. Nb3 {
[%emt 0:00:14]} Rf3 {[%emt 0:01:06]} 31. Qd1 {[%emt 0:00:47]} Rxg8 {
[%emt 0:00:21]} 32. Rxg8 {[%emt 0:00:02]} Qf2 {[%emt 0:00:18]} 33. Nc1 {
[%emt 0:00:44]} Qd4 {[%emt 0:00:18]} 34. Qxd4 {[%emt 0:00:43]} Bxd4 {
[%emt 0:00:02]} 35. c3 {[%emt 0:00:16]} Be3 {[%emt 0:00:09]} 36. Nd3 {
[%emt 0:00:45]} e5 {[%emt 0:00:13]} 0-1